Cogmind - Beta 13 @@@ ROGUE MODE // 2024.03.13 @ 20:58:05 Player: ILikeVoltron Result: Self-destructed Performance ------------- Evolutions (1) 500 Regions Visited (3) 600 Robots Destroyed (14) 70 Value Destroyed (232) 232 Prototype IDs (1) 20 Alien Tech Used (0) 0 Bonus (0) 0 TOTAL SCORE: 1422 Bonus ------- None Cogmind --------- Core Integrity 223/400 Matter 300/300 Energy 45/100 System Corruption 0% Temperature Cool (0) Movement Core (1450) Ox28 Location -9/Materials Parts ------- > --- POWER (1) -------- (None) > --- PROPULSION (3) --- Wheel > --- UTILITY (3) ------ Huge Storage Unit Trap Extractor (0/4) > --- WEAPON (2) ------- Improved Assault Rifle Hammer > --- INVENTORY (25) --- Ion Engine Light Ion Engine Compact Wheel Medium Matter Pod (100) Small Laser Beam Cannon Assault Rifle Peak State ------------ > --- POWER ------------ Light Ion Engine > --- PROPULSION ------- Light Treads Light Treads Wheel > --- UTILITY ---------- Huge Storage Unit Targeting Computer Trap Extractor > --- WEAPON ----------- Improved Assault Rifle Hammer > --- INVENTORY -------- Ion Engine Light Ion Engine Compact Wheel Medium Matter Pod Small Laser Beam Cannon Assault Rifle [Rating: 12] Favorites ----------- Power Light Ion Engine Engine Light Ion Engine Propulsion Aluminum Leg Treads Light Treads Leg Aluminum Leg Wheel Wheel Utility Targeting Computer Device Trap Extractor Storage Huge Storage Unit Processor Targeting Computer Weapon Hammer Energy Gun Medium Laser Ballistic Gun Assault Rifle Impact Weapon Hammer Build | -11 -10 -10 -9 ------- Run | Yrd Mat Min Mat Slots Evolved 2 | . . . 2 Power . | . . . . Propulsion 1 | . . . 1 Utility 1 | . . . 1 Weapon . | . . . . Parts Attached 8 | . 3 . 5 Power . | . . . . Engine . | . . . . Core . | . . . . Reactor . | . . . . Propulsion 3 | . . . 3 Treads 2 | . . . 2 Leg . | . . . . Wheel 1 | . . . 1 Hover . | . . . . Flight . | . . . . Utility 3 | . 2 . 1 Device 1 | . . . 1 Storage 1 | . 1 . . Processor 1 | . 1 . . Hackware . | . . . . Protection . | . . . . Artifact . | . . . . Weapon 2 | . 1 . 1 Energy Gun . | . . . . Energy Cannon . | . . . . Ballistic Gun 1 | . . . 1 Ballistic Cannon . | . . . . Launcher . | . . . . Special Weapon . | . . . . Impact Weapon 1 | . 1 . . Slashing Weapon . | . . . . Piercing Weapon . | . . . . Special Melee Weapon . | . . . . Unidentified Prototypes 1 | . . . 1 Parts Lost 7 | . . 2 5 Power 1 | . . . 1 Propulsion 4 | . . 2 2 Utility 1 | . . . 1 Weapon 1 | . . . 1 Highest Loss Streak 3 | . . 2 3 To Critical Strikes . | . . . . Average Slot Usage (%) 98 | . 98 99 93 Engine 12 | . 14 14 8 Treads 5 | . . . 21 Leg 21 | . 28 27 . Wheel 2 | . . . 10 Device 1 | . . . 8 Storage 13 | . 14 14 11 Processor 13 | . 13 14 11 Energy Gun 1 | . 7 . . Ballistic Gun 13 | . 14 14 11 Impact Weapon 12 | . 7 14 11 Naked Turns . | . . . . Heaviest Build 90 | 12 87 87 90 Greatest Support 40 | 20 20 20 40 Greatest Overweight (x) 28 | . 4 28 8 Average Overweight (x) 4 | . . 4 7 Largest Inventory Capacity 25 | . 25 25 25 Average Capacity 22 | . 12 25 25 Most Carried 9 | . 9 9 8 Average Carried 8 | . 7 9 6 Final Capacity 25 | 8 25 25 25 Final Carried 9 | 6 9 9 7 Class Distribution -------------------- 100% | Mutant Dominant Class ---------------- Mutant | -10/Materials Mutant | -10/Mines Mutant | -9/Materials Resources | -11 -10 -10 -9 ----------- Run | Yrd Mat Min Mat Matter Collected 441 | 195 73 45 128 Remotely . | . . . . Salvage Created 398 | . 190 . 208 Parts 13 | . 6 . 7 Haulers Intercepted 3 | . 2 . 1 Recyclers Shooed 2 | . 2 . . Parts Field Recycled . | . . . . Retrieved Matter . | . . . . Parts Self-Destructed . | . . . . Prevented . | . . . . Kills | -11 -10 -10 -9 ------- Run | Yrd Mat Min Mat Combat Hostiles Destroyed 7 | . 2 . 5 Melee 4 | . 1 . 3 Guns 1 | . 1 . . Classes Destroyed 7 | . 3 . 4 Worker 1 | . . . 1 Hauler 3 | . 2 . 1 Operator 2 | . 1 . 1 Watcher 1 | . . . 1 Swarmer 3 | . . . 3 Grunt 3 | . 2 . 1 Sentry 1 | . . . 1 Best Kill Streak 3 | . 3 . 3 Combat Bots Only 3 | . 1 . 3 Max Kills in Single Turn 1 | . 1 . 1 Gunslinging . | . . . . Exploded . | . . . . Melee 1 | . 1 . 1 Uniques/NPCs Destroyed . | . . . . Combat | -11 -10 -10 -9 -------- Run | Yrd Mat Min Mat Hostile Shots Fired 140 | . 13 45 82 Missed 35 | . 5 14 16 Damage Taken 1100 | . 93 342 665 Core 267 | . 24 66 177 Absorbed by Shields . | . . . . Core Remaining (%) 82 | 100 . 64 . Volleys Fired 22 | . 16 . 6 Largest 2 | . 2 . 1 Hottest 70 | . 70 . 23 Shots Fired 25 | . 19 . 6 Gun 25 | . 19 . 6 Cannon . | . . . . Launcher . | . . . . Special . | . . . . Kinetic 22 | . 16 . 6 Thermal 3 | . 3 . . Explosive . | . . . . Electromagnetic . | . . . . Robot Hit Streak 6 | . 3 . 6 Robot Miss Streak 2 | . 2 . 1 Penetration Max . | . . . . Secondary Targets . | . . . . Shots Hit Robots 45 | . 15 1 29 Core Hits 12 | . 7 . 5 Critical Kills 1 | . . . 1 Critical Parts Destroyed 8 | . 1 1 6 Critical Strikes 10 | . 2 1 7 Burn 1 | . 1 . . Smash 9 | . 1 1 7 Melee Attacks 41 | . 4 6 31 Impact 41 | . 4 6 31 Slashing . | . . . . Piercing . | . . . . Sneak Attacks 6 | . 2 . 4 Combat Hostiles . | . . . . Follow-up Attacks . | . . . . Damage Inflicted 1030 | . 306 22 702 Guns 222 | . 147 . 75 Cannons . | . . . . Explosions . | . . . . Melee 808 | . 159 22 627 Ramming . | . . . . Kinetic 197 | . 122 . 75 Thermal 25 | . 25 . . Explosive . | . . . . Electromagnetic . | . . . . Impact 808 | . 159 22 627 Slashing . | . . . . Piercing . | . . . . Highest Corruption . | . . . . Average Corruption . | . . . . Corruption Purged . | . . . . Corruption Blocked . | . . . . Overload Shots . | . . . . Overflow Damage 214 | . 49 22 143 Projectiles . | . . . . Explosions . | . . . . Melee 214 | . 49 22 143 Knockbacks 2 | . . 1 1 Impact 2 | . . 1 1 Kinetic . | . . . . Secondary . | . . . . Self-Inflicted Damage . | . . . . Shots . | . . . . Rammed . | . . . . Targets Rammed . | . . . . Kicked . | . . . . Crushed . | . . . . Highest Temperature 18 | . 18 . . Average Temperature 9 | . 9 . . Received Heat Transfer 354 | . 48 186 120 Siege Activations . | . . . . Robots Corrupted . | . . . . Combat Hostiles . | . . . . Parts Fried 7 | . 1 . 6 Impact Corruptions 10 | . 1 1 8 Robots Melted . | . . . . Combat Hostiles . | . . . . Parts Melted 1 | . 1 . . Heat Transferred 148 | . 148 . . Parts Sabotaged . | . . . . Parts Stolen . | . . . . Parts Stripped . | . . . . Power Chain Reactions . | . . . . Alert | -11 -10 -10 -9 ------- Run | Yrd Mat Min Mat Peak Influence 183 | . 89 34 183 Initial 34 | . . 34 . Average 25 | . 49 13 41 Maximum Alert Level . | . . . . Low Security (%) 100 | . 100 100 100 Level 1 . | . . . . Level 2 . | . . . . Level 3 . | . . . . Level 4 . | . . . . Level 5 . | . . . . High Security . | . . . . Max Security . | . . . . Squads Dispatched 2 | . 2 . . Investigation 1 | . 1 . . Extermination . | . . . . Reinforcement 1 | . 1 . . Assault . | . . . . Garrison . | . . . . Intercept . | . . . . Searches Triggered . | . . . . Construction Impeded . | . . . . Haulers Reinforced . | . . . . Active Scanning Responses . | . . . . Cargo Convoy Interrupts . | . . . . Stealth | -11 -10 -10 -9 --------- Run | Yrd Mat Min Mat Distress Signals 1 | . . . 1 Communications Jammed . | . . . . Distress Signals . | . . . . Times Spotted 20 | . 5 3 12 Peak Tracking Total 6 | . 2 3 6 Tactical Retreats 1 | . . . 1 Traps | -11 -10 -10 -9 ------- Run | Yrd Mat Min Mat Traps Triggered 1 | . 1 . . Indirectly . | . . . . Trap Hack Attempts . | . . . . Triggered . | . . . . Disarmed . | . . . . Reprogrammed . | . . . . Reused . | . . . . Traps Extracted . | . . . . Installed . | . . . . Triggered . | . . . . Machines | -11 -10 -10 -9 ---------- Run | Yrd Mat Min Mat Machines Disabled . | . . . . Max in Single Turn . | . . . . Machines Repaired . | . . . . Machines Dismantled . | . . . . Machines Sabotaged . | . . . . Overloaded Fab Kills . | . . . . Hacking | -11 -10 -10 -9 --------- Run | Yrd Mat Min Mat Machines Accessed 5 | . 2 . 3 Terminals 5 | . 2 . 3 Fabricators . | . . . . Repair Stations . | . . . . Recycling Units . | . . . . Scanalyzers . | . . . . Garrison Access . | . . . . Total Hacks 10 | . 3 . 7 Successful 8 | . 2 . 6 Failed 2 | . 1 . 1 Catastrophic 1 | . . . 1 Database Lockouts . | . . . . Manual 3 | . . . 3 Terminals 10 | . 3 . 7 Fabricators . | . . . . Repair Stations . | . . . . Recycling Units . | . . . . Scanalyzers . | . . . . Garrison Access . | . . . . Terminal Hacks 5 | . 2 . 3 Locate Traps 2 | . 1 . 1 Transport Status 1 | . . . 1 Zone Layout 2 | . 1 . 1 Fabricator Hacks . | . . . . Repair Station Hacks . | . . . . Recycling Unit Hacks . | . . . . Scanalyzer . | . . . . Garrison Access Hacks . | . . . . Unauthorized Hacks 3 | . . . 3 Terminals 3 | . . . 3 Track 1 | . . . 1 Botnet 2 | . . . 2 Fabricators . | . . . . Repair Stations . | . . . . Recycling Units . | . . . . Scanalyzers . | . . . . Garrison Access . | . . . . Data Cores Recovered 1 | . . . 1 Used 1 | . . . 1 Hacking Detections 3 | . 1 . 2 Full Trace Events . | . . . . Feedback Events . | . . . . Feedback Blocked . | . . . . Robot Schematics Acquired . | . . . . Robots Built . | . . . . Authchips . | . . . . Time . | . . . . Total Robot Build Rating . | . . . . Part Schematics Acquired . | . . . . Parts Built . | . . . . Authchips . | . . . . Time . | . . . . Total Part Build Rating . | . . . . Parts Repaired . | . . . . Time . | . . . . Parts Recycled . | . . . . Recycled Matter . | . . . . Retrieved Matter . | . . . . Retrieved Components . | . . . . Parts Scanalyzed . | . . . . Part Schematics Acquired . | . . . . Parts Damaged . | . . . . Bothacking | -11 -10 -10 -9 ------------ Run | Yrd Mat Min Mat Used RIF Installer . | . . . . Robots Hacked . | . . . . Non-combat . | . . . . Combat . | . . . . Robot Hacks Applied . | . . . . Relay Couplers Released . | . . . . Fabnet Peak Effective % . | . . . . Robots Rewired . | . . . . Allies Hacked . | . . . . Hacks Repelled . | . . . . Allies | -11 -10 -10 -9 -------- Run | Yrd Mat Min Mat Total Allies . | . . . . Largest Group . | . . . . Highest-Rated Group . | . . . . Highest-Rated Ally . | . . . . Total Orders . | . . . . Ally Attacks . | . . . . Total Damage . | . . . . Kills . | . . . . Allies Corrupted . | . . . . Allies Melted . | . . . . Intel | -11 -10 -10 -9 ------- Run | Yrd Mat Min Mat Robot Analysis Total . | . . . . Derelict Logs Recovered . | . . . . Drone Launches . | . . . . Drone Recoveries . | . . . . Exploration | -11 -10 -10 -9 ------------- Run | Yrd Mat Min Mat Turns Passed 1705 | . 279 1028 398 Spaces Moved 539 | 1 145 251 142 Core 1 | . . 1 . Treads 7 | . . . 7 Legs 396 | 1 145 250 . Wheels 135 | . . . 135 Hover . | . . . . Flight . | . . . . Fastest Speed 120 | 120 120 400 200 Average Speed 285 | 120 156 406 205 Slowest Speed 1450 | 120 400 1450 320 Overloaded Moves . | . . . . Propulsion Burnouts . | . . . . Robots Hopped . | . . . . Cave-ins Triggered . | . . . . Exploration Rate (%) 27 | 2 33 56 18 Regions Visited 3 Branch Regions 1 Pre-discovered Areas . | . . . . Known Exits Taken . | . . . . Unknown Exits Taken 3 | 1 1 1 . Scrap Searched . | . . . . Spaces Dug . | . . . . Terrain Destroyed . | . . . . Melee . | . . . . Projectile . | . . . . AOE . | . . . . Terrain Rammed . | . . . . Walls Destroyed . | . . . . Machines Disabled . | . . . . Actions | -11 -10 -10 -9 --------- Run | Yrd Mat Min Mat Total 620 | . 173 261 186 Wait 5 | . . 5 . Move 536 | . 144 250 142 Hop . | . . . . Pick Up 4 | . 4 . . Fast Attach 4 | . 1 . 3 Attach 3 | . . . 3 Detach 1 | . . . 1 Swap 2 | . 2 . . Drop 2 | . 2 . . Fire 22 | . 16 . 6 Melee 41 | . 4 6 31 Ram . | . . . . Kick . | . . . . Crush . | . . . . Escape Stasis . | . . . . Rewire . | . . . . Trap . | . . . . Miscellaneous . | . . . . Route ------- -11/Scrapyard -10/Materials (discovered 2 exits: [*Min x2]) -10/Mines -9/Materials History --------- Turn | Location | Event 1 | -11/Scrapyard | Discovered new exit (range 0) 1 | -11/Scrapyard | Entered Materials 202 | -10/Materials | Discovered new exit (range 13) 227 | -10/Materials | Discovered new exit (range 13) 280 | -10/Materials | Entered Mines 296 | -10/Mines | Met a Derelict bent on vengeance 302 | -10/Mines | Build established: Mutant 1161 | -10/Mines | Discovered new exit (range 5) 1227 | -10/Mines | Excavation squad dispatched 1227 | -10/Mines | A large section of the Mines collapsed 1308 | -10/Mines | Entered Materials 1308 | -9/Materials | Evolved 2 slots: Propulsion x1, Utility x1 1706 | -9/Materials | Self-destructed Last Messages --------------- 01654_ Lgt. Ion Engine fried. 01654_ K-01 Serf collects debris. 01661_ M-13 Machinist repairs R-06 Scavenger. 01664_ K-01 Serf collects debris. 01667_ S-10 Pest suffers critical hit (Smash). 01667_ Destroyed Lgt. Assault Rifle. 01667_ S-10 Pest system corrupted by crushing effect. 01667_ Flight Unit fried. 01667_ S-10 Pest destroyed. 01670_ Acquired 26 matter. 01682_ Acquired 4 matter. 01683_ K-01 Serf collects debris. 01692_ S-10 Pest destroyed. 01692_ K-01 Serf collects debris. 01698_ Lgt. Treads destroyed. 01700_ K-01 Serf collects debris. 01700_ R-06 Scavenger collects Lgt. Assault Rifle. 01702_ Targeting Computer destroyed. 01704_ Lgt. Treads destroyed. 01705_ K-01 Serf collects debris. Map ----- +----------------------------------------------------+ | ?????????????????????????????????????????????????? | | ?????????????????????????????????????????????????? | | ?????????????????????????????????????????????????? | | ?????????????????????????????????????????????????? | | ?????????????????????????????????????????????????? | | ?????????????????????????????????????????????????? | | ?????????????????????????????????????????????????? | | ?????????????????????????????????????????????????? | | ?????????????????????????????????????????????????? | | ?????????????????????????????????????????????????? | | ?????????????????????????????????????????????????? | | ?????????????????????????????????????????????????? | | ?????????????????#???????????????????????????????? | | ?????????????????# ??????????????????????????????? | | ?????????????????# ?????????????????????????????? | | ?????????????????# ?????????????????????????????? | | ?????????????##### ##########??????????????????? | | ?????????????? # #??????????????????? | | ?????????????????? %+% #??????????????????? | | ?????????????????????# #??????????????????? | | ?????????????????????# #??????????????????? | | ?????????????????????# r #??????????????????? | | ?????????????????????#m %k #??????????????????? | | ?????????????????????# s #??????????????????? | | ?????????????????????# s #??????????????????? | | ?????????????????????# %@s #??????????????????? | | ?????????????????????######/###??????????????????? | | ??????????????????????????# #????????????????????? | | ??????????????????????????# #????????????????????? | | ??????????????????????????# #????????????????????? | | ??????????????????????????# #??????####??????????? | | ??????????????????????????# #######"T"#######????? | | ??????????????????????????# ??? | | ?????????????????????" ####^ ??? | | ??????????????????? / """ """ """???????? | | ????????????????# """ ## """ """ ""????????? | | ????????????????????????# """ """ """???????? | | ????????????????????????# ??? | | ????????????????????????# ??? | | ????????????????????????# ??? | | ????????????????????????# ??? | | ????????????????????????# ### ##???? | | ????????????????????????# #?############+##????? | | ????????????????????????# #????????????????????? | | ????????????????????????# #????????????????????? | | ????????????????????????# #????????????????????? | | ????????????????????????# #????????????????????? | | ????????????????????????# #????????????????????? | | ????????????????????????# #???##########???????? | | ????????????????????????# #???# #???????? | +----------------------------------------------------+ Best States ------------- Heat Dissipation 28 Energy Generation 10 Energy Capacity 125 Matter Stores 300 Matter Capacity 300 Sight Range 16 Terrain Scan Density 10 Evasion (%) 55 Targeting Accuracy 5 Recoil Reduction 2 Trap Extractor Capacity 4 Item Schematics ----------------- None Robot Schematics ------------------ None Fabricated ------------ Nothing Alien Tech Used ----------------- None Achievements -------------- None Challenges ------------ None Game ------ Seed HardenedDeuteriumDiverter Manual? 0 Play Time 00:14:22 Cumulative 103.3 hours Start 2024.03.13 @ 20:48:23 End 2024.03.13 @ 20:58:05 Sessions 1 Manual Loads 0 Difficulty Rogue Special Mode None Game No. 162 Rogue 158 Adventurer 0 Explorer 4 Win Type - Total 0 Types 0/0/0/0/0/0/0/0/0 Lore% 24 Gallery% 41 Achievement% 33 Wizard Run 0 Options --------- Layout 2 ASCII 0 Keyboard 1 Movement Arrows Keybinds 0 Fullscreen 2 Font 32/SmallcapsGlow Map View 130x44 Zoom Use 0% Tactical HUD 1 Map Filters NONE Filters NONE Steam 1 RUN: b345676f-3aec-45c6-901c-c403d5892f46